Workbook

Sheet ORÇAMENTO
A1: <---- NUMERAR SERVIÇOS PARA CPU | E1: Ministério do Desenvolvimento Regional
E2: Companhia de Desenvolvimento dos Vales do São Francisco e do Parnaíba
E3: 1ª Superintendência Regional
B5: OBRA: | C5: PAVIMENTAÇÃO EM BLOQUETE SEXTAVADOS - RUAS DIVERSAS DO MUNICÍPIO DE MATA VERDE / MG | I5: BDI Serviços (%): | L5: ='BDI SERV'!E26 -> 25.48
B6: DATA: | C6: JANEIRO/2026 | I6: BDI Diferenciado Serviços (%): | L6: 15
B7: PRAZO DE EXECUÇÃO: 180 DIAS | I7: BDI Fornecimentos (%): | L7: 15
B8: PLANILHA DE ORÇAMENTAÇÃO
B9: ITEM | C9: CÓDIGO | D9: FONTE | E9: DISCRIMINAÇÃO | F9: TIPO | G9: UNID. | H9: QUANT. | I9: VR.UNIT.S/BDI | J9: PR. UNIT.C/BDI | K9: C. TOT.S/BDI | L9: P. TOT.C/BDI
A10: A | B10: 1 | E10: SERVIÇOS PRELIMINARES | K10: =SUM(K11:K16) -> 146058.09 | L10: =SUM(L11:L16) -> 183251.37
A11: 1 | B11: 1.1 | C11: CPU.1 | D11: CODEVASF | E11: MOBILIZAÇÃO E DESMOBILIZAÇÃO | F11: SERV | G11: GL | H11: 1 | I11: =VLOOKUP(A11,'CPU-SERV'!A:K,11,0) -> 11625.22 | J11: =TRUNC(_xlfn.IFS(F11="SERV",I11*(1+$L$5/100),F11="SERV DIF",I11*(1+$L$6/100),F11="FORN",I11*(1+$L$7/100)),2) -> 14587.32 | K11: =TRUNC(H11*I11,2) -> 11625.22 | L11: =TRUNC(H11*J11,2) -> 14587.32
A12: 2 | B12: 1.2 | C12: CPU.2 | D12: CODEVASF | E12: ADMINISTRAÇÃO LOCAL | F12: SERV | G12: GL | H12: 1 | I12: =VLOOKUP(A12,'CPU-SERV'!A:K,11,0) -> 79158.72 | J12: =TRUNC(_xlfn.IFS(F12="SERV",I12*(1+$L$5/100),F12="SERV DIF",I12*(1+$L$6/100),F12="FORN",I12*(1+$L$7/100)),2) -> 99328.36 | K12: =TRUNC(H12*I12,2) -> 79158.72 | L12: =TRUNC(H12*J12,2) -> 99328.36
A13: 3 | B13: 1.3 | C13: CPU.3 | D13: CODEVASF | E13: CANTEIRO DE OBRAS | F13: SERV | G13: GL | H13: 1 | I13: =VLOOKUP(A13,'CPU-SERV'!A:K,11,0) -> 14208.65 | J13: =TRUNC(_xlfn.IFS(F13="SERV",I13*(1+$L$5/100),F13="SERV DIF",I13*(1+$L$6/100),F13="FORN",I13*(1+$L$7/100)),2) -> 17829.01 | K13: 14208.65 | L13: 17829.01
A14: 4 | B14: 1.4 | C14: 103689 | D14: SINAPI | E14: PLACA DE OBRA EM CHAPA DE AÇO GALVANIZADO | F14: SERV | G14: M2 | H14: 2 | I14: =VLOOKUP(A14,'CPU-SERV'!A:K,11,0) -> 555.87 | J14: =TRUNC(_xlfn.IFS(F14="SERV",I14*(1+$L$5/100),F14="SERV DIF",I14*(1+$L$6/100),F14="FORN",I14*(1+$L$7/100)),2) -> 697.5 | K14: 1111.74 | L14: 1395
A15: 5 | B15: 1.5 | C15: CPU.4 | D15: CODEVASF | E15: VEÍCULO PARA A FISCALIZAÇÃO, MÁXIMO 02 ANOS DE USO OU 50.000KM, PREFERENCIALMENTE NA COR BRANCA, COM IDENTIFICAÇÃO CONFORME ESPECIFICAÇÕES DA CODEVASF, INCLUSIVE COMBUSTÍVEL, MANUTENÇÃO, SEGURO E IMPOSTOS - CONFORME ESPECIFICAÇÕES | F15: SERV | G15: MÊS | H15: 8 | I15: =VLOOKUP(A15,'CPU-SERV'!A:K,11,0) -> 4415.22 | J15: =TRUNC(_xlfn.IFS(F15="SERV",I15*(1+$L$5/100),F15="SERV DIF",I15*(1+$L$6/100),F15="FORN",I15*(1+$L$7/100)),2) -> 5540.21 | K15: =TRUNC(H15*I15,2) -> 35321.76 | L15: =TRUNC(H15*J15,2) -> 44321.68
A16: 6 | B16: 1.6 | C16: 78472 | D16: SINAPI | E16: SERVIÇOS TOPOGRÁFICOS PARA PAVIMENTAÇÃO, INCLUSIVE LEVANTAMENTO PLANIALTIMÉTRICO CADASTRAL, GERAÇÃO DE NOTAS DE SERVIÇO, SEÇÕES TRANSVERSAIS E GREIDE, ESTAQUEAMENTO E ACOMPANHAMENTO EXECUTIVO | F16: SERV | G16: M2 | H16: 9650 | I16: =VLOOKUP(A16,'CPU-SERV'!A:K,11,0) -> 0.48 | J16: =TRUNC(_xlfn.IFS(F16="SERV",I16*(1+$L$5/100),F16="SERV DIF",I16*(1+$L$6/100),F16="FORN",I16*(1+$L$7/100)),2) -> 0.6 | K16: 4632 | L16: 5790
A17: B | B17: 2 | E17: TERRAPLANAGEM E PAVIMENTAÇÃO | K17: =SUM(K18:K21) -> 631607.5 | L17: =SUM(L18:L21) -> 792393.5
A18: 7 | B18: 2.1 | C18: 5502114 | D18: SICRO | E18: ESCAVAÇÃO, CARGA E TRANSPORTE DE MATERIAL DE 1ª CATEGORIA - DMT 1.000 A 1.200M, CAMINHO DE SERVIÇO EM REVESTIMENTO PRIMÁRIO | F18: SERV | G18: M3 | H18: 1450 | I18: =VLOOKUP(A18,'CPU-SERV'!A:K,11,0) -> 8.65 | J18: =TRUNC(_xlfn.IFS(F18="SERV",I18*(1+$L$5/100),F18="SERV DIF",I18*(1+$L$6/100),F18="FORN",I18*(1+$L$7/100)),2) -> 10.85 | K18: =TRUNC(H18*I18,2) -> 12542.5 | L18: =TRUNC(H18*J18,2) -> 15732.5
A19: 8 | B19: 2.2 | C19: 4011209 | D19: SICRO | E19: REGULARIZAÇÃO DO SUBLEITO - 100% PROCTOR INTERMEDIÁRIO | F19: SERV | G19: M2 | H19: 9650 | I19: =VLOOKUP(A19,'CPU-SERV'!A:K,11,0) -> 1.88 | J19: =TRUNC(_xlfn.IFS(F19="SERV",I19*(1+$L$5/100),F19="SERV DIF",I19*(1+$L$6/100),F19="FORN",I19*(1+$L$7/100)),2) -> 2.35 | K19: 18142 | L19: 22677.5
A20: 9 | B20: 2.3 | C20: 4011219 | D20: SICRO | E20: BASE DE SOLO ESTABILIZADA GRANULOMETRICAMENTE SEM MISTURA COM MATERIAL DE JAZIDA - 100% PROCTOR MODIFICADO | F20: SERV | G20: M3 | H20: 1450 | I20: =VLOOKUP(A20,'CPU-SERV'!A:K,11,0) -> 17.2 | J20: =TRUNC(_xlfn.IFS(F20="SERV",I20*(1+$L$5/100),F20="SERV DIF",I20*(1+$L$6/100),F20="FORN",I20*(1+$L$7/100)),2) -> 21.58 | K20: =TRUNC(H20*I20,2) -> 24940 | L20: =TRUNC(H20*J20,2) -> 31291
A21: 10 | B21: 2.4 | C21: 92394 | D21: SINAPI | E21: EXECUÇÃO DE PAVIMENTO EM PISO INTERTRAVADO, COM BLOCO SEXTAVADO DE CONCRETO DE 25 X 25 CM, ESPESSURA 8 CM | F21: SERV | G21: M2 | H21: 8350 | I21: =VLOOKUP(A21,'CPU-SERV'!A:K,11,0) -> 68.98 | J21: =TRUNC(_xlfn.IFS(F21="SERV",I21*(1+$L$5/100),F21="SERV DIF",I21*(1+$L$6/100),F21="FORN",I21*(1+$L$7/100)),2) -> 86.55 | K21: 575983 | L21: 722692.5
A22: C | B22: 3 | E22: TRANSPORTE DE MATERIAIS | K22: =SUM(K23:K25) -> 177245 | L22: =SUM(L23:L25) -> 221945
A23: 15 | B23: 3.1 | C23: 5915321 | D23: SICRO | E23: TRANSPORTE COM CAMINHÃO BASCULANTE, EM VIA URBANA PAVIMENTADA | F23: SERV | G23: TXKM | H23: 58500 | I23: =VLOOKUP(A23,'CPU-SERV'!A:K,11,0) -> 0.68 | J23: =TRUNC(_xlfn.IFS(F23="SERV",I23*(1+$L$5/100),F23="SERV DIF",I23*(1+$L$6/100),F23="FORN",I23*(1+$L$7/100)),2) -> 0.85 | K23: =TRUNC(H23*I23,2) -> 39780 | L23: =TRUNC(H23*J23,2) -> 49725
A24: 16 | B24: 3.2 | C24: 5915320 | D24: SICRO | E24: TRANSPORTE COM CAMINHÃO BASCULANTE, EM VIA COM REVESTIMENTO PRIMÁRIO | F24: SERV | G24: TXKM | H24: 3500 | I24: =VLOOKUP(A24,'CPU-SERV'!A:K,11,0) -> 0.74 | J24: =TRUNC(_xlfn.IFS(F24="SERV",I24*(1+$L$5/100),F24="SERV DIF",I24*(1+$L$6/100),F24="FORN",I24*(1+$L$7/100)),2) -> 0.92 | K24: 2590 | L24: 3220
A25: 17 | B25: 3.3 | C25: 5914434 | D25: SICRO | E25: TRANSPORTE COM CAMINHÃO CARROCERIA, EM VIA URBANA PAVIMENTADA | F25: SERV | G25: TXKM | H25: 162500 | I25: =VLOOKUP(A25,'CPU-SERV'!A:K,11,0) -> 0.83 | J25: =TRUNC(_xlfn.IFS(F25="SERV",I25*(1+$L$5/100),F25="SERV DIF",I25*(1+$L$6/100),F25="FORN",I25*(1+$L$7/100)),2) -> 1.04 | K25: 134875 | L25: 169000
A26: D | B26: 4 | E26: DRENAGEM E OBRAS COMPLEMENTARES | K26: =SUM(K27:K28) -> 241026.5 | L26: =SUM(L27:L28) -> 302411
A27: 20 | B27: 4.1 | C27: 94273 | D27: SINAPI | E27: ASSENTAMENTO DE GUIA (MEIO-FIO) EM TRECHO RETO, CONFECCIONADA EM CONCRETO PRÉ-FABRICADO, DIMENSÕES 100X15X13X30 CM (COMPRIMENTO X BASE INFERIOR X BASE SUPERIOR X ALTURA). | F27: SERV | G27: M | H27: 2950 | I27: =VLOOKUP(A27,'CPU-SERV'!A:K,11,0) -> 50.18 | J27: =TRUNC(_xlfn.IFS(F27="SERV",I27*(1+$L$5/100),F27="SERV DIF",I27*(1+$L$6/100),F27="FORN",I27*(1+$L$7/100)),2) -> 62.96 | K27: =TRUNC(H27*I27,2) -> 148031 | L27: =TRUNC(H27*J27,2) -> 185732
A28: 22 | B28: 4.2 | C28: 94287a | D28: SINAPI | E28: EXECUÇÃO DE SARJETA DE CONCRETO USINADO, MOLDADA IN LOCO EM TRECHO RETO, 30 CM BASE X 5 CM ALTURA. | F28: SERV | G28: M | H28: 2850 | I28: =VLOOKUP(A28,'CPU-SERV'!A:K,11,0) -> 32.63 | J28: =TRUNC(_xlfn.IFS(F28="SERV",I28*(1+$L$5/100),F28="SERV DIF",I28*(1+$L$6/100),F28="FORN",I28*(1+$L$7/100)),2) -> 40.94 | K28: 92995.5 | L28: 116679
B29: TOTAL GERAL DA OBRA COM BDI | K29: =SUM(K10,K17,K22,K26) -> 1195937.09 | L29: =SUM(L10,L17,L22,L26) -> 1500000.87

Sheet CPU-SERV
A1: 1 | B1: 1ª/GRD | K1: =J37 -> 11625.22 | L1: Minas Gerais
B2: OBRA: | C2: PAVIMENTAÇÃO EM BLOQUETE SEXTAVADOS - RUAS DIVERSAS DO MUNICÍPIO DE MATA VERDE / MG | L2: Janeiro/2026
B3: Custo Unitário de Referência | E3: Minas Gerais
E4: Janeiro/2026 | H4: Produção da equipe | I4: 0.5 | J4: =VLOOKUP(A1,ORÇAMENTO!$A$10:$L$56,7,1) -> GL
B5: CPU.1 | C5: MOBILIZAÇÃO E DESMOBILIZAÇÃO | I5: Valores em reais (R$)
B6: A - EQUIPAMENTOS | D6: Quantidade | E6: Utilização | G6: Custo Horário | J6: Custo
E7: Operativa | F7: Improdutiva | G7: Produtivo | H7: Improdutivo | J7: Horário Total
B8: E9687 | C8: Caminhão carroceria com capacidade de 5 t - 120 kW | D8: 8 | E8: 0.6 | F8: 0.4 | G8: 172.4406 | H8: 68.6393 | J8: =D8*(E8*G8+F8*H8) -> 1047.36064
B9: E9575 | C9: Caminhão basculante com caçamba estanque com capacidade de 14 m³ - 210 kW | D9: 8 | E9: 1 | F9: 0 | G9: 323.1915 | H9: 97.6112 | J9: =D9*(E9*G9+F9*H9) -> 2585.532
H10: Custo horário total de equipamentos | J10: =SUM(J8:J9) -> 3632.89264
B11: B - MÃO DE OBRA | D11: Quantidade | E11: Unidade | G11: Custo Horário | H11: Custo Horário Total
B12: P9824 | C12: Servente | D12: 8 | E12: h | G12: 21.6849 | J12: =D12*G12 -> 173.4792
J13: =D13*G13 -> 0
D14: Custo horário total de mão de obra | J14: =SUM(J12:J13) -> 173.4792
D15: Custo horário total de execução | J15: =J10+J14 -> 3806.37184
D16: Custo unitário de execução | J16: =J15/I4 -> 7612.74368
H17: Custo do FIC | J17: 0
H18: Custo do FIT | J18: 0
B19: C - MATERIAL | D19: Quantidade | E19: Unidade | G19: Preço Unitário | H19: Custo Unitário
B20: - | C20: - | E20: - | G20: 0 | J20: =D20*G20 -> 0
B21: - | C21: - | E21: - | G21: 0 | J21: =D21*G21 -> 0
D22: Custo unitário total de material | J22: =SUM(J20:J21) -> 0
B23: D - ATIVIDADES AUXILIARES | D23: Quantidade | E23: Unidade | G23: Custo Unitário | H23: Custo Unitário
B24: 5914640 | C24: Transporte com cavalo mecânico com semirreboque com capacidade de 32 t - rodovia pavimentada | D24: 6800.822 | E24: tkm | G24: 0.59 | J24: =D24*G24 -> 4012.48498
B25: - | C25: - | D25: 0 | E25: - | G25: 0 | J25: =D25*G25 -> 0
D26: Custo total de atividades auxiliares | J26: =SUM(J24:J25) -> 4012.48498
H27: Subtotal | J27: =J16+J22+J26+J17+J18 -> 11625.22866
B28: E - TEMPO FIXO | D28: Código | E28: Quantidade | F28: Unidade | H28: Custo Unitário | I28: Custo Unitário
B29: - | C29: - | D29: - | F29: - | H29: 0 | J29: =ROUNDDOWN(E29*H29,4) -> 0
B30: - | C30: - | D30: - | F30: - | H30: 0 | J30: =ROUNDDOWN(E30*H30,4) -> 0
D31: Custo unitário total de tempo fixo | J31: =SUM(J29:J30) -> 0
B32: F - MOMENTO DE TRANSPORTE | D32: Quantidade | E32: Unidade | F32: DMT | J32: Custo Unitário
F33: LN | G33: RP | H33: P
B34: - | C34: - | E34: tkm
B35: - | C35: - | E35: tkm
D36: Custo unitário total de transporte
F37: Custo unitário direto total | J37: =TRUNC(J27+J31,2) -> 11625.22
B38: Obs.
A40: 2 | B40: 1ª/GRD | K40: =J81 -> 79158.72
B41: OBRA: | C41: PAVIMENTAÇÃO EM BLOQUETE SEXTAVADOS - RUAS DIVERSAS DO MUNICÍPIO DE MATA VERDE / MG
B42: Custo Unitário de Referência | E42: Minas Gerais
E43: Janeiro/2026 | H43: Produção da equipe | I43: 0.2 | J43: =VLOOKUP(A40,ORÇAMENTO!$A$10:$L$56,7,1) -> GL
B44: CPU.2 | C44: ADMINISTRAÇÃO LOCAL | I44: Valores em reais (R$)
B45: A - EQUIPAMENTOS | D45: Quantidade | E45: Utilização | G45: Custo Horário | J45: Custo
E46: Operativa | F46: Improdutiva | G46: Produtivo | H46: Improdutivo | J46: Horário Total
B47: - | C47: - | G47: 0 | H47: 0 | J47: =D47*(E47*G47+F47*H47) -> 0
B48: - | C48: - | G48: 0 | H48: 0 | J48: =D48*(E48*G48+F48*H48) -> 0
H49: Custo horário total de equipamentos | J49: =SUM(J47:J48) -> 0
B50: B - MÃO DE OBRA | D50: Quantidade | E50: Unidade | G50: Custo Horário | H50: Custo Horário Total
B51: P9812 | C51: Engenheiro - mensalista | D51: 0.1720157193 | E51: mês | G51: 26982.6132 | J51: =D51*G51 -> 4641.43362
B52: P9840 | C52: Encarregado geral - mensalista | D52: 0.5 | E52: mês | G52: 10965.15336 | J52: 5482.57668
B53: P9876 | C53: Técnico de segurança do trabalho - mensalista | D53: 0.25 | E53: mês | G53: 6601.52264 | J53: 1650.38066
B54: P9858 | C54: Laboratorista - mensalista | D54: 0.5 | E54: mês | G54: 5239.61512 | J54: 2619.80756
B55: P9806 | C55: Auxiliar administrativo - mensalista | D55: 0.25 | E55: mês | G55: 3765.27752 | J55: 941.31938
D56: Custo horário total de mão de obra | J56: =SUM(J51:J55) -> 15335.5179
D57: Custo horário total de execução | J57: =J49+J56 -> 15335.5179
D58: Custo unitário de execução | J58: =J57/I43 -> 76677.5895
H59: Custo do FIC | J59: -
H60: Custo do FIT | J60: -
B61: C - MATERIAL | D61: Quantidade | E61: Unidade | G61: Preço Unitário | H61: Custo Unitário
B62: - | C62: - | E62: - | G62: 0 | J62: =D62*G62 -> 0
B63: - | C63: - | E63: - | G63: 0 | J63: 0
D64: Custo unitário total de material | J64: =SUM(J62:J63) -> 0
B65: D - ATIVIDADES AUXILIARES | D65: Quantidade | E65: Unidade | G65: Custo Unitário | H65: Custo Unitário
B66: 14250 | C66: Energia Elétrica | D66: 240 | E66: kwh | G66: 1.12 | J66: =D66*G66 -> 268.8
B67: 44480 | C67: Tarifa A - Água e Esgoto | D67: 18 | E67: m³ | G67: 21.19 | J67: =D67*G67 -> 381.42
B68: 5212560 | C68: Placa de advertência para sinalização de obras montada em suporte metálico móvel, lado 1,00 m - utilização de 600 ciclos - fornecimento, 01 implantação e 01 retirada diária | D68: 352 | E68: un.dia | G68: 4.01 | J68: =D68*G68 -> 1411.52
B69: Cotação | C69: Telefone | D69: 6 | E69: mês | G69: 69.9 | J69: =D69*G69 -> 419.4
D70: Custo total de atividades auxiliares | J70: =SUM(J66:J69) -> 2481.14
H71: Subtotal | J71: =J58+J64+J70 -> 79158.7295
B72: E - TEMPO FIXO | D72: Código | E72: Quantidade | F72: Unidade | H72: Custo Unitário | I72: Custo Unitário
B73: - | C73: - | D73: - | F73: - | H73: 0 | J73: =ROUNDDOWN(E73*H73,4) -> 0
B74: - | C74: - | D74: - | F74: - | H74: 0 | J74: =ROUNDDOWN(E74*H74,4) -> 0
D75: Custo unitário total de tempo fixo | J75: =SUM(J73:J74) -> 0
B76: F - MOMENTO DE TRANSPORTE | D76: Quantidade | E76: Unidade | F76: DMT | J76: Custo Unitário
F77: LN | G77: RP | H77: P
B78: - | C78: - | E78: tkm
B79: - | C79: - | E79: tkm
D80: Custo unitário total de transporte
F81: Custo unitário direto total | J81: =TRUNC(J71+J75,2) -> 79158.72
B82: Obs.
A84: 3 | B84: 1ª/GRD | K84: =J120 -> 14208.65
B85: OBRA: | C85: PAVIMENTAÇÃO EM BLOQUETE SEXTAVADOS - RUAS DIVERSAS DO MUNICÍPIO DE MATA VERDE / MG
B86: Custo Unitário de Referência | E86: Minas Gerais
E87: Janeiro/2026 | H87: Produção da equipe | I87: 1 | J87: =VLOOKUP(A84,ORÇAMENTO!$A$10:$L$56,7,1) -> GL
B88: CPU.3 | C88: CANTEIRO DE OBRAS | I88: Valores em reais (R$)
B89: A - EQUIPAMENTOS | D89: Quantidade | E89: Utilização | G89: Custo Horário | J89: Custo
E90: Operativa | F90: Improdutiva | G90: Produtivo | H90: Improdutivo | J90: Horário Total
B91: - | C91: - | G91: 0 | H91: 0 | J91: =D91*(E91*G91+F91*H91) -> 0
B92: - | C92: - | G92: 0 | H92: 0 | J92: =D92*(E92*G92+F92*H92) -> 0
H93: Custo horário total de equipamentos | J93: =SUM(J91:J92) -> 0
B94: B - MÃO DE OBRA | D94: Quantidade | E94: Unidade | G94: Custo Horário | H94: Custo Horário Total
B95: P9824 | C95: Servente | D95: 8 | E95: h | G95: 21.6849 | J95: =D95*G95 -> 173.4792
B96: P9808 | C96: Carpinteiro | D96: 8 | E96: h | G96: 27.6471 | J96: 221.1768
D97: Custo horário total de mão de obra | J97: =SUM(J95:J96) -> 394.656
D98: Custo horário total de execução | J98: =J93+J97 -> 394.656
D99: Custo unitário de execução | J99: =J98/I87 -> 394.656
H100: Custo do FIC | J100: -
H101: Custo do FIT | J101: -
B102: C - MATERIAL | D102: Quantidade | E102: Unidade | G102: Preço Unitário | H102: Custo Unitário
B103: M0053 | C103: Tela plástica em polipropileno na cor laranja para tapume - L = 1,2 m | D103: 100 | E103: m | G103: 1.79 | J103: =D103*G103 -> 179
B104: - | C104: - | D104: 0 | E104: - | G104: 0 | J104: 0
D105: Custo unitário total de material | J105: =SUM(J103:J104) -> 179
B106: D - ATIVIDADES AUXILIARES | D106: Quantidade | E106: Unidade | G106: Custo Unitário | H106: Custo Unitário
B107: 10775 | C107: Locação de container 2,30 X 6,00 m, alt. 2,50 m, com 1 sanitário, para escritório, completo, sem divisórias internas | D107: 6 | E107: mês | G107: 1010 | J107: =D107*G107 -> 6060
B108: 10779 | C108: Locação de container 2,30 X 4,30 m, alt. 2,50 M, p/ sanitário, c/ 5 bacias, 1 lavatório e 4 mictórios | D108: 6 | E108: mês | G108: 1262.5 | J108: =D108*G108 -> 7575
D109: Custo total de atividades auxiliares | J109: =SUM(J107:J108) -> 13635
H110: Subtotal | J110: =J99+J105+J109 -> 14208.656
B111: E - TEMPO FIXO | D111: Código | E111: Quantidade | F111: Unidade | H111: Custo Unitário | I111: Custo Unitário
B112: - | C112: - | D112: - | F112: - | H112: 0 | J112: =ROUNDDOWN(E112*H112,4) -> 0
B113: - | C113: - | D113: - | F113: - | H113: 0 | J113: =ROUNDDOWN(E113*H113,4) -> 0
D114: Custo unitário total de tempo fixo | J114: =SUM(J112:J113) -> 0
B115: F - MOMENTO DE TRANSPORTE | D115: Quantidade | E115: Unidade | F115: DMT | J115: Custo Unitário
F116: LN | G116: RP | H116: P
B117: - | C117: - | E117: tkm
B118: - | C118: - | E118: tkm
D119: Custo unitário total de transporte
F120: Custo unitário direto total | J120: =TRUNC(J110+J114,2) -> 14208.65
B121: Obs.
A123: 4 | B123: 1ª/GRD | K123: =J161 -> 555.87
B124: OBRA: | C124: PAVIMENTAÇÃO EM BLOQUETE SEXTAVADOS - RUAS DIVERSAS DO MUNICÍPIO DE MATA VERDE / MG
B125: Custo Unitário de Referência | E125: Minas Gerais
E126: Janeiro/2026 | H126: Produção da equipe | I126: 1 | J126: =VLOOKUP(A123,ORÇAMENTO!$A$10:$L$56,7,1) -> M2
B127: 103689 | C127: PLACA DE OBRA EM CHAPA DE AÇO GALVANIZADO | I127: Valores em reais (R$)
B128: A - EQUIPAMENTOS | D128: Quantidade | E128: Utilização | G128: Custo Horário | J128: Custo
E129: Operativa | F129: Improdutiva | G129: Produtivo | H129: Improdutivo | J129: Horário Total
B130: - | C130: - | G130: 0 | H130: 0 | J130: =D130*(E130*G130+F130*H130) -> 0
B131: - | C131: - | G131: 0 | H131: 0 | J131: =D131*(E131*G131+F131*H131) -> 0
H132: Custo horário total de equipamentos | J132: =SUM(J130:J131) -> 0
B133: B - MÃO DE OBRA | D133: Quantidade | E133: Unidade | G133: Custo Horário | H133: Custo Horário Total
B134: P9824 | C134: Servente | D134: 1.1186 | E134: h | G134: 21.6849 | J134: =D134*G134 -> 24.25672914
B135: P9808 | C135: Carpinteiro | D135: 0.3729 | E135: h | G135: 27.6471 | J135: 10.30960359
D136: Custo horário total de mão de obra | J136: =SUM(J134:J135) -> 34.56633273
D137: Custo horário total de execução | J137: =J132+J136 -> 34.56633273
D138: Custo unitário de execução | J138: =J137/I126 -> 34.56633273
H139: Custo do FIC | J139: -
H140: Custo do FIT | J140: -
B141: C - MATERIAL | D141: Quantidade | E141: Unidade | G141: Preço Unitário | H141: Custo Unitário
B142: M1358 | C142: Sarrafo em madeira de terceira - E = 2,5 cm e L = 5 cm | D142: 6.4166 | E142: m | G142: 2.1217 | J142: =D142*G142 -> 13.61410022
B143: M1205 | C143: Prego de ferro | D143: 0.0245 | E143: kg | G143: 15.2544 | J143: 0.3737328
B144: M0998 | C144: Madeira estrutural de eucalipto | D144: 0.022608 | E144: m³ | G144: 3000 | J144: 67.824
B145: 4813 | C145: Placa de obra (para construção civil) em chapa galvanizada *N. 22*, adesivada, de *2,4 X 1,2* m (sem postes para fixação) | D145: 1 | E145: m² | G145: 439.5 | J145: =D145*G145 -> 439.5
D146: Custo unitário total de material | J146: =SUM(J142:J145) -> 521.311833
B147: D - ATIVIDADES AUXILIARES | D147: Quantidade | E147: Unidade | G147: Custo Unitário | H147: Custo Unitário
B148: - | C148: - | D148: 0 | E148: - | G148: 0 | J148: =D148*G148 -> 0
B149: - | C149: - | D149: 0 | E149: - | G149: 0 | J149: 0
D150: Custo total de atividades auxiliares | J150: =SUM(J148:J149) -> 0
H151: Subtotal | J151: =J138+J146+J150 -> 555.8781657
B152: E - TEMPO FIXO | D152: Código | E152: Quantidade | F152: Unidade | H152: Custo Unitário | I152: Custo Unitário
B153: - | C153: - | D153: - | F153: - | H153: 0 | J153: =ROUNDDOWN(E153*H153,4) -> 0
B154: - | C154: - | D154: - | F154: - | H154: 0 | J154: =ROUNDDOWN(E154*H154,4) -> 0
D155: Custo unitário total de tempo fixo | J155: =SUM(J153:J154) -> 0
B156: F - MOMENTO DE TRANSPORTE | D156: Quantidade | E156: Unidade | F156: DMT | J156: Custo Unitário
F157: LN | G157: RP | H157: P
B158: - | C158: - | E158: tkm
B159: - | C159: - | E159: tkm
D160: Custo unitário total de transporte
F161: Custo unitário direto total | J161: =TRUNC(J151+J155,2) -> 555.87
B162: Obs.
A164: 5 | B164: 1ª/GRD | K164: =J208 -> 4415.22
B165: OBRA: | C165: PAVIMENTAÇÃO EM BLOQUETE SEXTAVADOS - RUAS DIVERSAS DO MUNICÍPIO DE MATA VERDE / MG
B166: Custo Unitário de Referência | E166: Minas Gerais
E167: Janeiro/2026 | H167: Produção da equipe | I167: 1 | J167: =VLOOKUP(A164,ORÇAMENTO!$A$10:$L$56,7,1) -> MÊS
B168: CPU.4 | C168: VEÍCULO PARA A FISCALIZAÇÃO, MÁXIMO 02 ANOS DE USO OU 50.000KM, PREFERENCIALMENTE NA COR BRANCA, COM IDENTIFICAÇÃO CONFORME ESPECIFICAÇÕES DA CODEVASF, INCLUSIVE COMBUSTÍVEL, MANUTENÇÃO, SEGURO E IMPOSTOS - CONFORME ESPECIFICAÇÕES | I168: Valores em reais (R$)
B169: A - EQUIPAMENTOS | D169: Quantidade | E169: Utilização | G169: Custo Horário | J169: Custo
E170: Operativa | F170: Improdutiva | G170: Produtivo | H170: Improdutivo | J170: Horário Total
B171: - | C171: - | G171: 0 | H171: 0 | J171: =D171*(E171*G171+F171*H171) -> 0
B172: - | C172: - | G172: 0 | H172: 0 | J172: =D172*(E172*G172+F172*H172) -> 0
H173: Custo horário total de equipamentos | J173: =SUM(J171:J172) -> 0
B174: B - MÃO DE OBRA | D174: Quantidade | E174: Unidade | G174: Custo Horário | H174: Custo Horário Total
B175: - | C175: - | E175: - | G175: 0 | J175: =D175*G175 -> 0
B176: - | C176: - | E176: - | G176: 0 | J176: 0
D177: Custo horário total de mão de obra | J177: =SUM(J175:J176) -> 0
D178: Custo horário total de execução | J178: =J173+J177 -> 0
D179: Custo unitário de execução | J179: =J178/I167 -> 0
H180: Custo do FIC | J180: -
H181: Custo do FIT | J181: -
B182: C - MATERIAL | D182: Quantidade | E182: Unidade | G182: Preço Unitário | H182: Custo Unitário
B183: - | C183: - | E183: - | G183: 0 | J183: =D183*G183 -> 0
B184: - | C184: - | E184: - | G184: 0 | J184: 0
D185: Custo unitário total de material | J185: =SUM(J183:J184) -> 0
B186: D - ATIVIDADES AUXILIARES | D186: Quantidade | E186: Unidade | G186: Custo Unitário | H186: Custo Unitário
B187: - | C187: Depreciação | D187: 1 | E187: vb | G187: 725.9333333 | J187: =D187*G187 -> 725.9333333
B188: - | C188: Oportunidade de Capital | D188: 1 | E188: vb | G188: 544.45 | J188: =D188*G188 -> 544.45
B189: - | C189: Impostos e Licenciamento | D189: 1 | E189: vb | G189: 362.97 | J189: 362.97
B190: - | C190: Seguro Total | D190: 1 | E190: vb | G190: 281.58 | J190: 281.58
B191: - | C191: Combustível | D191: 1 | E191: vb | G191: 1324.29 | J191: 1324.29
B192: - | C192: Manutenções Preventivas | D192: 1 | E192: vb | G192: 254.02 | J192: 254.02
B193: - | C193: Limpeza | D193: 1 | E193: vb | G193: 100 | J193: 100
B194: - | C194: Pneus | D194: 1 | E194: vb | G194: 119.98 | J194: 119.98
B195: - | C195: Peças | D195: 1 | E195: vb | G195: 74.79 | J195: 74.79
B196: - | C196: Manutenção Corretiva (%) | D196: 1 | E196: vb | G196: 627.21 | J196: 627.21
D197: Custo total de atividades auxiliares | J197: =SUM(J187:J196) -> 4415.223333
H198: Subtotal | J198: =J179+J185+J197 -> 4415.223333
B199: E - TEMPO FIXO | D199: Código | E199: Quantidade | F199: Unidade | H199: Custo Unitário | I199: Custo Unitário
B200: - | C200: - | D200: - | F200: - | H200: 0 | J200: =ROUNDDOWN(E200*H200,4) -> 0
B201: - | C201: - | D201: - | F201: - | H201: 0 | J201: =ROUNDDOWN(E201*H201,4) -> 0
D202: Custo unitário total de tempo fixo | J202: =SUM(J200:J201) -> 0
B203: F - MOMENTO DE TRANSPORTE | D203: Quantidade | E203: Unidade | F203: DMT | J203: Custo Unitário
F204: LN | G204: RP | H204: P
... 397 more rows

Sheet AUX-VEIC.
B2: CÁLCULO DO CUSTO POR MÊS DE VEÍCULOS
B3: Veículo: Polo TSI, Onix Turbo, Argo 1.3, HB-20 Turbo | D3: Data: | E3: 2026-01-20
B4: DADOS ELEMENTARES DO VEÍCULO
B5: Dados Básicos | C5: Preço (R$) | D5: Quantidade | E5: Vida Útil
B6: Quilometragem média mensal | D6: 3000
B7: Valor de Aquisição (VA) | C7: 108890
B8: Taxa de Juros (i)% | D8: 15
B9: IPVA e Seguro Obrigatório (4%) | C9: 4355.6
B10: Lavagem | C10: 50 | D10: 2
B11: Pneus | C11: 499.9 | D11: 4 | E11: 50000
B12: Combustível | C12: 6.18 | D12: 14
B13: Óleo Lubrificante + Filtros (revisão) | C13: 846.744 | D13: 1 | E13: 10000
B14: Seguro Total Anual | C14: 3378.94
B15: Jogo de Amortecedores | C15: 1246.5 | E15: 50000
B16: Coeficiente de Manutenção | D16: 4.8e-06
B17: Motorista | C17: 3038.274018 | D17: 1
B18: CÁLCULO DO CUSTO POR MÊS
B19: DEPRECIAÇÃO | C19: D = (VA-0,60xVA) / 12 x 5 | E19: 725.9333333
B20: JUROS | C20: J = (VA-0,60xVA) x i / 12 | E20: 544.45
B21: LICENCIAMENTO | C21: L = (IPVA=SEG.OBRIG.)/12 | E21: 362.97
B22: SEGURO TOTAL | C22: ST = SEGURO ANUAL/12 | E22: 281.58
B23: COMBUSTÍVEL | C23: OD = (Comb./Consu)x Km.mês | E23: 1324.29
B24: ÓLEO LUBRIFICANTE | C24: OL = ((Ol. X Quant)/Vida Útil)xKm.mês) | E24: 254.02
B25: LAVAGEM | C25: LL = Preço Lavagem x Quantidade | E25: 100
B26: PNEUS | C26: P = ((P. PneusxQuant)/Vida Útil)xkm.mês) | E26: 119.98
B27: AMORTECEDORES | C27: AM = (P. Amort/Vida Útil)xkm.mês | E27: 74.79
B28: MANUTENÇÃO | C28: M = (VA-VPxK)xkm.mês | E28: 627.21
B29: MOTORISTA | C29: MOT = SALÁRIO+LEIS SOCIAIS | E29: 5276.87
B30: CUSTO POR MÊS | C30: SEM MOTORISTA | E30: 4415.223333
C31: COM MOTORISTA | E31: 9692.093333

Sheet BDI SERV
B1: DETALHAMENTO DO BDI - SERVIÇOS
B4: Item | C4: Descrição dos Serviços | D4: % - PV | E4: % - CD
B6: 1 | C6: ADMINISTRAÇÃO CENTRAL | E6: =SUM(E7:E9) -> 4.01
B7: 1.1 | C7: ESCRITÓRIO CENTRAL | E7: 4.01
B8: 1.2 | C8: VIAGENS
B9: 1.3 | C9: OUTROS
B11: 2 | C11: IMPOSTOS E TAXAS | D11: =SUM(D12:D15) -> 8.65 | E11: =SUM(E12:E15) -> 0
B12: 2.1 | C12: ISS - Proposta | D12: =D34*100 -> 5
B13: 2.2 | C13: PIS | D13: 0.65
B14: 2.3 | C14: Cofins | D14: 3
B15: 2.4 | C15: Contribuição Previdenciaria (CPRB)
B17: 3 | C17: TAXA DE RISCO | E17: =SUM(E18:E20) -> 0.96
B18: 3.1 | C18: SEGURO | E18: 0.2
B19: 3.2 | C19: RISCO | E19: 0.56
B20: 3.3 | C20: GARANTIA | E20: 0.2
B22: 4 | C22: DESPESAS FINANCEIRAS | E22: 1.11
B24: 5 | C24: LUCRO | E24: 8
B26: BDI APRESENTADO: | E26: =IF($D$41=$C$43,$D$43,IF($D$41=$C$44,$D$44,IF($D$41=$C$44,$D$44,IF($D$41=$C$45,$D$45,0)))) -> 25.48
C28: Legislação Municipal: | D28: Lei nº 087/95
C29: Município: | D29: Mata Verde
C30: Alíquota ISSQN: | D30: 0.05 | E30: Município
C31: Base de Cálculo: | D31: 1 | E31: Mata Verde
C32: Valor Serviço: | D32: 1195937.09
C33: Dedução - Material (estimado): | E33: =D33/D32 -> 0
C34: ISSQN BDI: | D34: =IF(D32="",0,ROUND(IF(D31=D49,((1-(D33/D32))*D30),D30*D31),4)) -> 0.05 | E34: (*)
A36: Acórdão nº 2.622/2013 - TCU Plenário
A37: BDI = ARRED((((((1+(AC+TR)/100)*(1+DF/100)*(1+L/100))/(1-IMP/100))-1)*100);2)
B39: (*) É obrigação da licitante a verificação da Legislação Tributária vigente no município, bem como o cálculo dos valores totais de serviços e materiais estimados, para apresentação de sua proposta.
C41: Forma de Cálculo do BDI: | D41: BDI - Acórdão nº 2.622/2013 - TCU
C43: BDI - Digitado | D43: =ROUND(E6+E11+E17+E22+E24,2) -> 14.08
C44: BDI - Calculado | D44: =ROUND((((1+(E6/100+E22/100+E17/100))/(1-(D11/100+E24/100)))-1)*100,2) -> 27.27
C45: BDI - Acórdão nº 2.622/2013 - TCU | D45: =ROUND((((((1+(E6+E17)/100)*(1+E22/100)*(1+E24/100))/(1-D11/100))-1)*100),2) -> 25.48
D49: Dedução - Material | E49: Município
D50: 0.1 | E50: Simples Nacional
D51: 0.2 | E51: Municípios Indefinidos
D52: 0.3
D53: 0.4
D54: 0.5
D55: 0.6
D56: 0.7
D57: 0.8
D58: 0.9
D59: 1
D60: =E31 -> Mata Verde

Sheet CRONOGRAMA
B1: CRONOGRAMA FÍSICO-FINANCEIRO
B2: OBRA: | C2: =ORÇAMENTO!C5 -> PAVIMENTAÇÃO EM BLOQUETE SEXTAVADOS - RUAS DIVERSAS DO MUNICÍPIO DE MATA VERDE / MG | F2: VALOR: | G2: =ORÇAMENTO!L29 -> 1500000.87
F3: PRAZO: | G3: 180 DIAS
B5: ITEM | C5: ETAPAS/DESCRIÇAO | D5: FISICO/ FINANCEIRO | E5: TOTAL ETAPAS | F5: MÊS 1 | G5: MÊS 2 | H5: MÊS 3 | I5: MÊS 4 | J5: MÊS 5 | K5: MÊS 6 | L5: TOTAL
A6: A | B6: =VLOOKUP(A6,ORÇAMENTO!$A$10:$L$29,2) -> 1 | C6: =VLOOKUP(A6,ORÇAMENTO!$A$10:$L$29,5) -> SERVIÇOS PRELIMINARES | D6: FISICO | E6: =ROUND(E7/$G$2,4) -> 0.1222 | F6: 0.2 | G6: 0.2 | H6: 0.15 | I6: 0.15 | J6: 0.15 | K6: 0.15 | L6: =SUM(F6:K6) -> 1
D7: FINANCEIRO | E7: =ORÇAMENTO!L10 -> 183251.37 | F7: =ROUND($E$7*F6,2) -> 36650.27 | G7: =ROUND($E$7*G6,2) -> 36650.27 | H7: =ROUND($E$7*H6,2) -> 27487.71 | I7: =ROUND($E$7*I6,2) -> 27487.71 | J7: =ROUND($E$7*J6,2) -> 27487.71 | K7: 27487.71 | L7: 183251.38
A8: B | B8: =VLOOKUP(A8,ORÇAMENTO!$A$10:$L$29,2) -> 2 | C8: =VLOOKUP(A8,ORÇAMENTO!$A$10:$L$29,5) -> TERRAPLANAGEM E PAVIMENTAÇÃO | D8: FISICO | E8: =ROUND(E9/$G$2,4) -> 0.5283 | F8: 0.2 | G8: 0.2 | H8: 0.2 | I8: 0.15 | J8: 0.15 | K8: 0.1 | L8: 1
D9: FINANCEIRO | E9: =ORÇAMENTO!L17 -> 792393.5 | F9: =ROUND($E$9*F8,2) -> 158478.7 | G9: =ROUND($E$9*G8,2) -> 158478.7 | H9: =ROUND($E$9*H8,2) -> 158478.7 | I9: =ROUND($E$9*I8,2) -> 118859.03 | J9: =ROUND($E$9*J8,2) -> 118859.03 | K9: 79239.35 | L9: 792393.51
A10: C | B10: =VLOOKUP(A10,ORÇAMENTO!$A$10:$L$29,2) -> 3 | C10: =VLOOKUP(A10,ORÇAMENTO!$A$10:$L$29,5) -> TRANSPORTE DE MATERIAIS | D10: FISICO | E10: =ROUND(E11/$G$2,4) -> 0.148 | F10: 0.15 | G10: 0.15 | H10: 0.2 | I10: 0.2 | J10: 0.15 | K10: 0.15 | L10: 1
D11: FINANCEIRO | E11: =ORÇAMENTO!L22 -> 221945 | F11: =ROUND($E$11*F10,2) -> 33291.75 | G11: =ROUND($E$11*G10,2) -> 33291.75 | H11: =ROUND($E$11*H10,2) -> 44389 | I11: =ROUND($E$11*I10,2) -> 44389 | J11: =ROUND($E$11*J10,2) -> 33291.75 | K11: 33291.75 | L11: 221945
A12: D | B12: =VLOOKUP(A12,ORÇAMENTO!$A$10:$L$29,2) -> 4 | C12: =VLOOKUP(A12,ORÇAMENTO!$A$10:$L$29,5) -> DRENAGEM E OBRAS COMPLEMENTARES | D12: FISICO | E12: =ROUND(E13/$G$2,4) -> 0.2016 | F12: 0.1 | G12: 0.1 | H12: 0.2 | I12: 0.2 | J12: 0.2 | K12: 0.2 | L12: 1
D13: FINANCEIRO | E13: =ORÇAMENTO!L26 -> 302411 | F13: =ROUND($E$13*F12,2) -> 30241.1 | G13: =ROUND($E$13*G12,2) -> 30241.1 | H13: =ROUND($E$13*H12,2) -> 60482.2 | I13: =ROUND($E$13*I12,2) -> 60482.2 | J13: =ROUND($E$13*J12,2) -> 60482.2 | K13: 60482.2 | L13: 302411
B14: TOTAL | D14: FISICO | E14: =SUM(F14:H14) -> 0.5387738542 | F14: =F15/E15 -> 0.1724411133 | G14: =G15/$E$15 -> 0.1724411133 | H14: =H15/$E$15 -> 0.1938916275 | I14: =I15/$E$15 -> 0.1674785295 | J14: =J15/$E$15 -> 0.1600803672 | K14: 0.1336672625 | L14: 1.000000013
D15: FINANCEIRO | E15: =E11+E9+E7+E13 -> 1500000.87 | F15: =F11+F9+F7+F13 -> 258661.82 | G15: =G11+G9+G7+G13 -> 258661.82 | H15: =H11+H9+H7+H13 -> 290837.61 | I15: =I11+I9+I7+I13 -> 251217.94 | J15: =J11+J9+J7+J13 -> 240120.69 | K15: 200501.01 | L15: =ROUNDUP(SUM(F15:K15),2)-0.02 -> 1500000.87
B17: OBSERVAÇÕES:
